bitfinex/quotes_ETHUSD_20250808
["timestamp","ask_amount","ask_price","bid_price","bid_amount"]
[1754671222655,3.919,3965.3,3964.9,2.5221317]
[1754671222816,3.919,3965.4,3964.9,2.5221317]
[1754671223017,3.918,3965.4,3964.9,3.0]
[1754671223217,3.0721317,3964.9,3964.8,0.1264]
[1754671223450,2.52225893,3964.7,3964.6,0.001]
[1754671223652,2.54750141,3964.7,3964.6,0.001]
[1754671223852,3.59830141,3964.7,3964.6,0.001]
[1754671224159,4.14830141,3964.7,3964.6,0.001]
[1754671225315,7.12305893,3964.7,3964.6,1e-08]
[1754671225516,9.10724058,3964.7,3964.6,1e-08]
[1754671225719,9.30647748,3964.7,3964.6,1e-08]
[1754671225961,13.22947748,3964.7,3964.6,1e-08]
[1754671226330,3.0724498,3964.4,3964.3,1e-08]
[1754671226545,3.07257706,3964.2,3964.1,1e-08]
[1754671226734,3.07270433,3964.0,3963.9,1e-08]
[1754671226935,7.14934681,3964.0,3963.9,1e-08]
[1754671227136,8.57086003,3964.0,3963.9,1e-08]
[1754671227335,11.76991385,3964.0,3963.9,1e-08]
[1754671227533,14.09973794,3964.0,3963.9,1e-08]
[1754671227772,14.77605768,3964.0,3963.9,1e-08]
[1754671227961,14.09973794,3964.0,3963.9,1e-08]
[1754671228170,14.10273794,3964.0,3963.9,1e-08]
[1754671228357,15.00534159,3964.0,3963.9,1e-08]
[1754671229569,10.17473794,3964.0,3963.9,1e-08]
[1754671229745,13.96354307,3964.0,3963.9,1e-08]
[1754671230142,10.03354307,3964.0,3963.9,1e-08]
[1754671230350,14.23598925,3964.0,3963.9,1e-08]
[1754671230555,13.21448925,3964.0,3963.9,1e-08]
[1754671230758,13.76448925,3964.0,3963.9,1e-08]
[1754671231178,10.22163355,3964.0,3963.9,1e-08]
[1754671231750,9.31773355,3964.0,3963.9,1e-08]
[1754671231957,8.76773355,3964.0,3963.9,1e-08]
[1754671232676,0.1264,3964.0,3963.9,1e-08]
[1754671232834,4.0564,3964.0,3963.9,1e-08]
[1754671233431,6.57910433,3964.0,3963.9,1e-08]
[1754671233985,4.0564,3964.0,3963.9,1e-08]
[1754671234488,0.1264,3964.0,3963.9,1e-08]
[1754671234665,3.936,3964.0,3963.9,1e-08]
[1754671235036,3.936,3964.0,3963.9,3.48296799]
[1754671235574,2.52200158,3965.2,3963.9,1.69982458]
[1754671235775,0.1264,3964.7,3963.9,1.69982458]
[1754671235989,0.1264,3964.8,3964.6,2.52231259]
[1754671236189,6.06,3965.6,3965.2,2.52188634]
[1754671236365,3.937,3965.5,3965.3,3.48203292]
[1754671236678,3.937,3965.5,3965.4,2.99331368]
[1754671237062,3.937,3965.5,3965.4,0.9602]
[1754671237439,3.937,3965.5,3965.4,2.99331368]
[1754671238134,3.937,3965.5,3965.4,0.4715]
[1754671238369,3.937,3965.5,3965.4,2.99331368]
[1754671238755,3.937,3965.5,3965.4,3.60841368]
[1754671239067,0.002,3966.0,3965.6,2.52163791]
[1754671239270,3.935,3965.9,3965.5,2.52175009]
[1754671239440,3.935,3965.9,3965.6,0.4715]
[1754671239645,0.1284,3966.0,3965.9,2.52149575]
[1754671239646,0.002,3966.0,3965.9,2.52149575]
[1754671239950,0.002,3966.0,3965.9,2.99299575]
[1754671239951,3.937,3966.0,3965.9,2.99299575]
[1754671240348,3.936,3966.0,3965.9,3.48169575]
[1754671240874,0.002,3966.0,3965.9,6.48169575]
[1754671241475,0.002,3966.0,3965.9,6.60809575]
[1754671241772,0.002,3966.0,3965.9,8.63735718]
[1754671244261,0.002,3966.0,3965.1,0.4725]
[1754671244449,0.002,3966.0,3965.7,0.1264]
[1754671245451,0.002,3966.0,3965.9,5.52149575]
[1754671245993,0.002,3966.0,3965.9,6.48169575]
[1754671248758,0.002,3966.0,3965.9,10.41369575]
[1754671248987,0.002,3966.0,3965.9,12.75742601]
[1754671249794,0.002,3966.1,3966.0,6.07143217]
[1754671250084,0.002,3966.1,3966.0,6.78163217]
[1754671250284,1e-08,3966.1,3966.0,6.48163217]
[1754671250471,1e-08,3966.1,3966.0,10.41463217]
[1754671250656,1e-08,3966.1,3966.0,12.96992226]
[1754671252958,1e-08,3966.1,3966.0,8.07672226]
[1754671254088,1e-08,3966.1,3966.0,8.99642226]
[1754671254258,0.042,3966.4,3966.3,5.52124145]
[1754671254588,0.042,3966.4,3966.3,9.45324145]
[1754671254758,0.042,3966.4,3966.3,12.17003978]
[1754671254953,0.002,3966.9,3966.4,5.52117789]
[1754671255165,0.002,3966.9,3966.8,16.02297802]
[1754671255385,0.002,3966.9,3966.8,16.14937802]
[1754671256458,0.002,3966.9,3966.8,16.58617802]
[1754671256658,0.002,3966.9,3966.8,17.78482826]
[1754671256860,0.002,3966.9,3966.8,17.30192826]
[1754671257064,0.002,3966.9,3966.8,16.86512826]
[1754671258512,0.002,3966.9,3966.8,5.64732366]
[1754671260179,0.9566,3966.9,3966.8,3.1264]
[1754671260382,2.52092366,3966.8,3965.9,0.100969]
[1754671260578,1.32759485,3966.7,3965.2,10.50205436]
[1754671260799,0.002,3966.9,3965.8,10.50205436]
[1754671260800,0.9546,3966.6,3965.8,10.50205436]
[1754671261001,0.9566,3966.9,3965.8,10.50205436]
[1754671261167,2.52116584,3966.5,3965.9,3.0]
[1754671261702,2.52107183,3966.6,3965.9,3.0]
[1754671262080,2.52112908,3966.5,3965.9,3.0]
[1754671262675,2.52105756,3966.6,3965.9,3.0]
[1754671262883,0.4846,3966.9,3966.0,1.78700544]
[1754671262884,0.002,3966.9,3966.0,1.78700544]
[1754671263106,0.472,3966.8,3966.0,1.35020544]
[1754671263287,2.52106081,3966.6,3966.0,1.35020544]
[1754671263602,0.4826,3966.7,3966.0,1.35020544]
[1754671263603,3.00359987,3966.7,3966.0,1.35020544]
[1754671263803,0.472,3966.8,3966.0,1.35020544]
[1754671263971,0.002,3966.9,3966.2,3.0]
[1754671265002,2.52093163,3966.8,3966.2,3.0]
[1754671265203,2.52116076,3966.5,3965.9,6.931]
[1754671265367,0.4826,3966.7,3965.7,3.0]
[1754671265574,0.472,3966.5,3965.7,3.0]
[1754671265776,0.472,3966.5,3965.8,0.6931]
[1754671266715,2.99311521,3966.5,3965.8,0.6931]
[1754671266910,0.002,3966.9,3965.3,3.0]
[1754671266911,3.47579859,3966.4,3965.3,3.0]
[1754671267212,3.47584145,3966.3,3965.3,5.52187098]
[1754671267390,3.44584145,3966.3,3965.3,5.52187098]
[1754671268226,2.52137461,3966.1,3965.3,3.0]
[1754671268382,2.52137461,3966.1,3965.4,1.99559762]
[1754671268914,2.52131726,3966.2,3965.4,1.99559762]
[1754671269692,2.99337508,3966.1,3965.4,1.99559762]
[1754671269891,3.931,3966.4,3965.1,0.001]
[1754671269892,0.9546,3966.0,3965.1,0.001]
[1754671270211,2.52158013,3965.8,3965.1,0.001]
[1754671270412,2.52158013,3965.8,3965.5,0.1264]
[1754671270812,3.928,3966.4,3965.7,0.1264]
[1754671271131,6.99240456,3966.4,3965.7,0.1264]
[1754671271427,3.0644524,3966.3,3965.7,0.1264]
[1754671271948,2.52124455,3966.3,3965.6,3.0]
[1754671272092,0.9546,3966.2,3964.8,12.82950296]
[1754671272277,2.52155424,3965.9,3965.4,0.1264]
[1754671272484,0.9546,3965.8,3965.4,0.1264]
[1754671273223,2.52175009,3965.5,3965.4,0.1264]
[1754671273625,0.9546,3965.5,3965.4,0.1264]
[1754671274232,3.928,3966.1,3965.4,3.1264]
[1754671274444,0.9546,3966.0,3965.4,3.1264]
[1754671274749,2.52154694,3965.9,3965.6,0.1264]
[1754671275045,3.47614694,3965.9,3965.6,0.1264]
[1754671275244,2.52149797,3965.9,3965.6,0.1264]
[1754671275412,0.9546,3965.8,3965.6,0.1264]
[1754671276526,6.44938979,3966.1,3965.6,0.1264]
[1754671276527,3.928,3966.1,3965.6,0.1264]
[1754671276929,0.472,3966.0,3965.6,0.1264]
[1754671277354,0.4826,3966.0,3965.6,0.1264]
[1754671277652,0.9546,3965.9,3965.6,0.1264]
[1754671277955,4.8826,3966.1,3965.6,2.64807681]
[1754671278451,2.99317791,3966.4,3965.4,3.0]
[1754671278631,3.923,3966.3,3966.0,0.1264]
[1754671278832,4.4056,3966.3,3966.0,0.1264]
[1754671279034,4.8776,3966.3,3966.0,0.1264]
[1754671280349,4.8776,3966.3,3964.9,3.926]
[1754671280350,2.52161354,3965.8,3965.2,3.0]
[1754671280551,3.922,3965.7,3965.5,0.1264]
[1754671280723,4.8766,3965.6,3965.5,0.1264]
[1754671281459,3.922,3965.6,3965.5,3.1264]
[1754671282442,3.922,3965.6,3965.5,0.1264]
[1754671282649,2.52175009,3965.5,3965.1,0.001]
[1754671282950,3.47635009,3965.5,3965.1,0.001]
[1754671283151,2.52175009,3965.5,3965.1,0.001]
[1754671283355,0.9546,3965.4,3965.1,0.001]
[1754671283722,2.52175009,3965.5,3965.1,0.001]
[1754671283923,0.9546,3965.3,3965.1,0.001]
[1754671284146,6.44394088,3965.2,3965.1,0.001]
[1754671284348,4.8328,3965.2,3965.1,0.001]
[1754671284562,0.4374,3965.2,3965.1,0.001]
[1754671284764,3.921,3965.2,3965.1,2.64939947]
[1754671285352,3.921,3965.2,3965.1,15.47890243]
[1754671285674,3.921,3965.2,3965.1,17.73420574]
[1754671286441,3.921,3965.2,3965.1,17.27900574]
[1754671286974,3.921,3965.2,3965.1,4.44950278]
[1754671287271,3.921,3965.2,3965.1,0.1274]
[1754671287475,7.35374088,3965.2,3965.1,0.001]
[1754671287784,4.8318,3965.2,3965.1,0.001]
[1754671288757,3.921,3965.2,3965.1,0.001]
[1754671289673,4.8318,3965.2,3965.1,0.001]
[1754671289865,8.10175144,3965.2,3965.1,0.001]
[1754671290065,4.8318,3965.2,3965.1,0.001]
[1754671290264,7.35374088,3965.2,3965.1,0.001]
[1754671294683,4.8318,3965.2,3965.1,0.001]
[1754671295266,7.35374088,3965.2,3965.1,0.001]
[1754671295692,4.8318,3965.2,3965.1,0.001]
[1754671296176,3.921,3965.2,3965.1,0.001]
[1754671298290,3.914,3965.2,3965.1,0.001]
[1754671300381,4.8248,3965.2,3965.1,0.001]
[1754671303401,3.914,3965.2,3965.1,0.001]
[1754671304281,0.1264,3965.3,3965.2,2.52194088]
[1754671304522,3.914,3965.3,3965.2,2.52194088]
[1754671304675,3.914,3965.3,3965.2,3.03907667]
[1754671309626,0.1264,3965.8,3965.4,2.52179706]
[1754671309825,3.914,3965.7,3965.4,2.52179706]
[1754671310118,4.3514,3965.7,3965.4,2.52179706]
[1754671310322,4.8248,3965.7,3965.4,2.52179706]
[1754671310523,4.8248,3965.7,3965.5,2.52174771]
[1754671311189,0.9108,3965.6,3965.1,0.1274]
[1754671311394,0.1264,3965.3,3965.1,0.001]
[1754671311592,3.914,3965.2,3965.1,0.001]
[1754671311825,4.8248,3965.2,3965.1,0.001]
[1754671312037,7.37198336,3965.2,3965.1,0.001]
[1754671312330,8.89288676,3965.2,3965.1,0.001]
[1754671312688,9.44288676,3965.2,3965.1,0.001]
[1754671313847,8.89288676,3965.2,3965.1,0.001]
[1754671314020,9.01928676,3965.2,3965.1,0.001]
[1754671314327,8.0172627,3965.2,3965.1,0.001]
[1754671314670,7.8908627,3965.2,3965.1,0.001]
[1754671314922,8.0172627,3965.2,3965.1,0.001]
[1754671315296,8.5672627,3965.2,3965.1,0.001]
[1754671315498,8.5672627,3965.2,3965.1,1e-08]
[1754671315499,18.64324295,3965.2,3965.1,1e-08]
[1754671315823,6.07219531,3964.8,3964.7,0.001]
[1754671316012,10.8566244,3964.8,3964.7,0.001]
[1754671316339,11.95006163,3964.8,3964.7,0.001]
[1754671316539,12.85673993,3964.8,3964.7,0.001]
[1754671318897,11.95006163,3964.8,3964.7,0.001]
[1754671319095,13.53228474,3964.8,3964.7,0.001]
[1754671319443,14.43789526,3964.8,3964.7,0.001]
[1754671320639,13.53328474,3964.8,3964.7,0.001]
[1754671322427,14.21192478,3964.8,3964.7,0.001]
[1754671323626,11.21192478,3964.8,3964.7,0.001]
[1754671323936,6.50928943,3964.8,3964.7,0.001]
[1754671324138,7.10771713,3964.8,3964.7,0.001]
[1754671324704,8.05951713,3964.8,3964.7,0.001]
[1754671324906,7.10771713,3964.8,3964.7,0.001]
[1754671325802,4.58552182,3964.8,3964.7,0.001]
[1754671326046,4.0414,3964.8,3964.7,0.001]
[1754671326218,6.56359531,3964.8,3964.7,0.001]
[1754671326558,1.6360248,3964.8,3964.7,0.001]
[1754671326726,0.1264,3964.8,3964.7,0.001]
[1754671326931,4.0404,3964.8,3964.7,0.4641]
[1754671327530,4.0404,3964.8,3964.7,0.001]
[1754671327531,7.51439531,3964.8,3964.7,0.001]
[1754671327842,8.60851713,3964.8,3964.7,0.001]
[1754671329760,7.65671713,3964.8,3964.7,0.001]
[1754671329936,7.10671713,3964.8,3964.7,0.001]
[1754671330523,4.58452182,3964.8,3964.7,0.001]
[1754671330742,3.914,3964.8,3964.7,2.98631292]
[1754671330940,3.914,3964.8,3964.7,4.009021]
[1754671332021,3.914,3964.8,3964.7,1.48680808]
[1754671332242,3.914,3964.8,3964.7,0.4641]
[1754671332654,3.914,3964.8,3964.7,0.001]
[1754671333023,3.914,3964.8,3964.7,2.98635893]
[1754671333224,3.914,3964.8,3964.7,6.44545893]
[1754671333528,3.914,3964.8,3964.7,7.48138332]
[1754671335855,6.058,3965.2,3965.1,2.52200448]
[1754671336151,6.058,3965.2,3964.7,4.95912439]
[1754671336152,9.972,3965.2,3965.0,2.5220513]
[1754671336348,9.972,3965.2,3964.8,2.52217951]
[1754671336522,9.972,3965.2,3964.9,0.1264]
[1754671336923,9.972,3965.2,3964.8,0.1264]
[1754671337345,9.972,3965.2,3964.8,2.64854793]
[1754671337546,9.972,3965.2,3964.9,2.52213007]
[1754671338366,9.972,3965.2,3964.8,2.64857389]
[1754671338855,9.972,3965.2,3964.8,0.1264]
[1754671339835,9.972,3965.2,3964.9,2.52212388]
[1754671340756,9.972,3965.2,3964.8,0.1264]
[1754671340757,9.972,3965.2,3964.8,2.64858531]
[1754671340928,9.972,3965.2,3964.9,2.52212832]
[1754671341439,6.058,3965.2,3964.8,2.64859198]
[1754671341626,2.5214072,3966.1,3965.4,2.52176682]
[1754671341955,0.1264,3965.8,3965.5,2.52173927]
[1754671342126,3.913,3965.7,3965.5,2.52173927]
[1754671342323,3.913,3965.7,3965.6,2.5216865]
[1754671342828,3.913,3965.7,3965.5,2.52173475]
[1754671343066,0.002,3966.3,3965.7,2.52162291]
[1754671343229,0.002,3966.3,3966.2,2.52130502]
[1754671343424,3.915,3966.3,3966.2,2.52130502]
[1754671343657,3.915,3966.3,3966.2,5.98440502]
[1754671343962,0.002,3966.3,3966.2,6.44350502]
[1754671344161,3.915,3966.3,3966.2,8.62294585]
[1754671347658,0.002,3966.3,3966.2,8.62294585]
[1754671349333,0.002,3966.3,3966.2,12.93294585]
[1754671349876,0.002,3966.3,3966.2,12.47384585]
[1754671350873,0.002,3966.3,3966.2,12.96544585]
[1754671352374,0.002,3966.3,3966.2,12.47384585]
[1754671353271,0.002,3966.3,3966.2,12.60024585]
[1754671354075,0.002,3966.3,3966.2,7.82714585]
[1754671356141,0.002,3966.3,3966.2,8.26064585]
[1754671356661,0.002,3966.3,3966.2,18.51868985]
[1754671357267,0.002,3966.7,3966.6,5.52105077]
[1754671357429,0.002,3966.7,3966.6,16.33119985]
[1754671357628,0.002,3966.7,3966.6,17.38269985]
[1754671358443,0.002,3966.7,3966.6,16.89109985]
[1754671359533,0.002,3966.7,3966.6,17.38269985]
[1754671362127,0.002,3966.7,3966.6,16.89109985]
[1754671362864,0.002,3966.7,3966.6,21.20109985]
[1754671364455,0.002,3966.7,3966.6,20.76759985]
[1754671365535,0.002,3966.7,3966.6,24.67759985]
[1754671365741,0.002,3966.9,3966.8,5.52092366]
[1754671365966,0.002,3966.9,3966.8,10.91224558]
[1754671366348,0.002,3966.9,3966.8,11.34574558]
[1754671366950,0.002,3966.9,3966.8,10.91224558]
[1754671368770,0.002,3966.9,3966.8,15.22224558]
[1754671369590,0.002,3966.9,3966.8,15.65574558]
[1754671370755,0.002,3966.9,3966.8,15.22224558]
[1754671372573,0.002,3966.9,3966.8,11.31224558]
[1754671372761,0.9435,3966.9,3966.8,9.95732366]
[1754671372966,0.9435,3966.9,3966.8,4.4364]
[1754671373146,0.9435,3966.9,3966.8,4.31]
[1754671373641,4.8525,3966.9,3966.7,0.1264]
[1754671373856,4.8525,3966.9,3966.6,0.001]
[1754671373857,2.52098721,3966.7,3966.6,0.001]
[1754671374056,2.52124145,3966.3,3965.3,2.52186848]
[1754671374264,2.64764145,3966.3,3965.4,0.1264]
[1754671374471,3.61514145,3966.3,3965.4,0.1264]
[1754671374810,4.8372039,3966.3,3965.4,0.1264]
[1754671375287,4.15856386,3966.3,3965.4,0.1264]
[1754671375458,4.89440031,3966.3,3965.4,2.64819421]
[1754671375779,4.89440031,3966.3,3965.4,0.1264]
[1754671375983,8.80240031,3966.3,3965.4,0.1264]
[1754671376143,8.80240031,3966.3,3966.2,11.625]
[1754671376344,9.49387377,3966.3,3966.2,11.35253906]
[1754671377242,10.39871218,3966.3,3966.2,11.35253906]
[1754671378350,9.49387377,3966.3,3966.2,11.35253906]
[1754671379488,10.17175038,3966.3,3966.2,11.35253906]
[1754671380367,9.49635038,3966.3,3966.2,11.35253906]
[1754671380568,10.1724926,3966.3,3966.2,11.35253906]
[1754671381263,9.4945738,3966.3,3966.2,11.35253906]
[1754671381494,10.17245041,3966.3,3966.2,11.35253906]
[1754671381705,13.17245041,3966.3,3966.2,11.35253906]
[1754671382100,3.55,3966.2,3964.8,0.001]
[1754671382397,0.1264,3965.0,3964.8,0.001]
[1754671382694,3.909,3964.9,3964.8,2.64959531]
[1754671382897,3.909,3964.9,3964.8,0.5586]
[1754671383101,3.909,3964.9,3964.8,3.08079531]
[1754671383289,3.909,3964.9,3964.8,2.64959531]
[1754671383689,3.909,3964.9,3964.8,3.08079531]
[1754671384086,3.909,3964.9,3964.8,3.69108669]
[1754671385795,3.909,3964.9,3964.8,4.18988669]
[1754671385998,3.909,3964.9,3964.8,3.25988669]
[1754671386206,3.909,3964.9,3964.8,0.1274]
[1754671386369,7.3986317,3964.9,3964.8,0.001]
[1754671386568,7.5250317,3964.9,3964.8,0.001]
[1754671387482,4.0354,3964.9,3964.8,0.001]
[1754671388384,3.909,3964.9,3964.8,2.52319531]
[1754671388570,3.909,3964.9,3964.8,3.04048373]
[1754671388768,3.909,3964.9,3964.8,0.51828842]
[1754671388974,3.909,3964.9,3964.8,0.001]
[1754671389575,1.0939,3965.3,3964.8,0.001]
[1754671389775,3.909,3965.2,3964.8,0.001]
[1754671390399,4.408,3965.2,3964.8,0.001]
[1754671390576,0.4685,3965.1,3964.8,0.001]
[1754671390773,4.408,3965.2,3964.8,2.52319198]
[1754671391987,4.408,3965.2,3964.9,2.52212515]
[1754671392189,4.408,3965.2,3964.8,2.52318308]
[1754671392372,3.909,3965.2,3964.8,0.001]
[1754671392596,3.909,3965.2,3965.0,2.52201453]
[1754671392926,3.909,3965.2,3964.9,2.64851602]
[1754671393280,3.909,3965.2,3964.9,0.1264]
[1754671393491,0.9675,3965.1,3964.9,0.1264]
[1754671394007,3.909,3965.2,3964.9,0.1264]
[1754671395705,3.909,3965.2,3964.9,2.64852309]
[1754671396284,3.909,3965.2,3964.9,0.1264]
[1754671396504,3.909,3965.2,3964.9,2.64852632]
[1754671396690,3.909,3965.2,3964.9,2.6485257]
[1754671397203,3.909,3965.2,3964.9,0.1264]
[1754671397585,3.909,3965.2,3964.9,2.6485275]
[1754671398220,3.909,3965.2,3965.1,2.52200448]
[1754671398422,3.909,3965.2,3965.1,0.1264]
[1754671398625,3.909,3965.2,3965.1,2.64840448]
[1754671401729,2.52200448,3965.1,3965.0,4.31]
[1754671401943,2.52200448,3965.1,3964.8,0.001]
[1754671401944,2.5221317,3964.9,3964.8,0.001]
[1754671402090,3.48959039,3965.0,3964.8,0.001]
[1754671402290,3.6160317,3964.9,3964.8,0.001]
[1754671402706,1.0939,3964.9,3964.8,0.001]
[1754671404286,5.0019,3964.9,3964.8,0.001]
[1754671404492,5.54512561,3964.9,3964.8,0.001]
[1754671405094,4.45122561,3964.9,3964.8,0.001]
[1754671405294,3.908,3964.9,3964.8,0.001]
[1754671405825,3.908,3964.9,3964.8,2.52319531]
[1754671406032,0.1264,3965.0,3964.9,2.5221317]
[1754671406204,0.90483841,3965.9,3965.0,2.52206809]
[1754671406205,3.908,3965.1,3965.0,2.52206809]
[1754671406388,3.908,3965.3,3965.0,0.4301]
[1754671406615,3.908,3965.3,3965.2,2.52194088]
[1754671406811,3.908,3965.3,3965.2,2.64834088]
[1754671407126,0.54322561,3965.9,3965.8,2.52155933]
[1754671407422,3.908,3965.9,3965.8,2.52155933]
[1754671407606,3.908,3965.9,3965.8,2.64795933]
[1754671410635,0.54379428,3966.5,3966.4,2.52117789]
[1754671410934,3.907,3966.5,3966.4,2.64757789]
[1754671413932,3.907,3966.5,3966.4,6.16446218]
[1754671414443,0.002,3966.9,3966.8,2.52092366]
[1754671414616,3.909,3966.9,3966.8,2.52092366]
[1754671414808,3.909,3966.9,3966.8,2.64732366]
[1754671416035,3.909,3966.9,3966.8,6.54952366]
[1754671416240,3.909,3966.9,3966.8,8.74003905]
[1754671416428,0.002,3966.9,3966.8,8.74003905]
[1754671417229,0.002,3967.1,3966.9,5.52086011]
[1754671417432,0.002,3967.1,3967.0,18.35538921]
[1754671417739,0.002,3967.1,3967.0,19.38398921]
[1754671417941,0.002,3967.1,3967.0,20.75367786]
[1754671419005,0.002,3967.1,3967.0,20.28157786]
[1754671421623,0.002,3967.1,3967.0,7.01688522]
[1754671422372,0.9128,3967.1,3967.0,0.1264]
[1754671422638,4.8178,3967.1,3966.7,2.52093601]
[1754671422958,0.9108,3967.0,3966.9,0.1264]
[1754671423315,0.483,3967.0,3966.9,0.1264]
[1754671423520,1.4766,3967.0,3966.4,2.64753639]
[1754671423743,0.9108,3966.9,3966.4,0.1264]
[1754671423962,2.52111433,3966.5,3966.4,0.1264]
[1754671424165,3.904,3966.5,3966.4,0.1264]
[1754671424473,4.8148,3966.5,3965.6,3.0]
[1754671424774,4.8148,3966.5,3966.0,2.64781661]
[1754671424937,0.9108,3966.4,3966.0,2.64781661]
[1754671425274,0.9108,3966.3,3965.2,2.52193545]
[1754671425474,0.9108,3966.3,3965.5,2.52175009]
[1754671425475,3.904,3966.2,3965.5,2.52175009]
[1754671425771,3.904,3966.2,3965.6,2.52165509]
[1754671426162,0.4278,3966.1,3965.6,2.52165509]
[1754671426364,0.9108,3966.0,3965.5,2.52174514]
[1754671426591,0.9108,3965.9,3965.5,2.52174514]
[1754671426746,3.904,3966.2,3965.5,2.52174514]
[1754671426946,0.9108,3965.8,3965.5,3.0]
[1754671427652,0.9108,3965.8,3965.5,2.52174045]
[1754671428062,0.9108,3965.8,3965.6,2.52168271]
[1754671428268,3.904,3965.7,3965.6,2.52168271]
[1754671428665,3.904,3965.7,3965.5,2.52173804]
[1754671429256,3.904,3965.7,3965.5,3.0]
[1754671429457,3.904,3965.7,3965.5,2.52173513]
[1754671429656,3.904,3965.7,3965.6,2.5216865]
[1754671429853,3.904,3965.7,3965.5,2.52174867]
[1754671430079,3.904,3965.7,3965.5,3.0]
[1754671430375,3.904,3965.7,3965.5,7.31]
[1754671430970,3.904,3965.7,3965.4,0.001]
[1754671431284,3.904,3965.7,3965.5,2.52170339]
[1754671431482,3.904,3965.7,3965.4,3.001]
[1754671431651,3.904,3965.7,3965.6,2.5216865]
[1754671431981,3.904,3965.7,3965.5,2.52174159]
[1754671432375,3.904,3965.7,3965.4,0.001]
[1754671432573,3.904,3965.7,3965.6,2.5216865]
[1754671433492,3.904,3965.7,3965.5,2.52173114]
[1754671433850,3.904,3965.7,3965.4,2.52280134]
[1754671433851,4.3318,3965.7,3965.4,2.52280134]
[1754671434067,4.8148,3965.7,3965.5,3.0]
[1754671434486,4.3318,3965.7,3965.6,2.5216865]
[1754671434847,3.904,3965.7,3965.6,2.5216865]
[1754671435193,3.904,3965.7,3965.6,2.6480865]
[1754671436364,0.1264,3966.3,3966.2,2.52130502]
[1754671436577,0.1264,3966.3,3966.2,5.52130502]
[1754671436893,3.904,3966.8,3966.7,2.52098721]
[1754671437092,3.904,3966.8,3966.7,2.64738721]
[1754671438279,4.8472,3966.8,3966.7,2.64738721]
[1754671439683,4.8472,3966.8,3966.7,0.1264]
[1754671439989,4.8472,3966.8,3966.6,3.0]
[1754671440202,0.9432,3966.7,3966.6,3.0]
[1754671440680,3.904,3966.8,3966.7,2.52098721]
[1754671440884,3.904,3966.8,3966.7,2.64738721]
[1754671443754,3.904,3966.8,3966.4,4.31]
[1754671443957,3.35850836,3966.7,3965.5,0.001]
[1754671444266,0.1264,3966.4,3966.0,3.0]
[1754671444466,4.8462,3966.3,3966.0,3.0]
[1754671444794,3.903,3966.3,3966.2,2.52130502]
[1754671444954,3.903,3966.3,3966.1,2.52136138]
[1754671445300,0.9432,3966.2,3966.1,2.52136859]
[1754671445468,0.9432,3966.2,3966.0,2.52141335]
[1754671445653,3.903,3966.3,3965.9,5.64788305]
[1754671446277,0.9432,3966.2,3965.9,5.64788305]
[1754671446459,0.9432,3966.2,3965.9,2.64788305]
[1754671446655,0.9432,3966.1,3966.0,2.52143217]
[1754671447274,0.9432,3966.1,3965.7,3.0]
[1754671447471,0.9432,3966.1,3965.5,0.001]
[1754671447472,2.52150035,3965.9,3965.5,0.001]
[1754671447682,3.903,3965.8,3965.5,0.001]
[1754671447884,4.8462,3965.8,3965.5,0.001]
[1754671448197,0.9432,3965.7,3965.5,0.001]
[1754671448683,0.9432,3965.7,3965.5,2.52270796]
[1754671448982,0.9432,3965.7,3965.5,0.001]
[1754671449382,0.9432,3965.6,3965.5,0.001]
[1754671450477,3.903,3965.8,3965.5,2.52270625]
[1754671450654,4.8462,3965.8,3965.5,2.52270625]
[1754671450856,3.903,3965.7,3965.6,2.5216865]
[1754671451277,3.903,3965.7,3965.6,2.6480865]
[1754671455901,3.903,3966.0,3965.9,2.52149575]
[1754671457459,3.903,3966.0,3965.9,3.04094762]
[1754671457710,3.903,3966.2,3965.9,4.82945187]
[1754671457914,0.1264,3966.8,3966.6,2.52100955]
[1754671458074,3.903,3966.7,3966.6,2.52100955]
[1754671458479,0.002,3967.0,3966.9,2.52086011]
[1754671458674,3.905,3967.0,3966.9,2.52086011]
[1754671459714,0.002,3967.0,3966.9,2.64726011]
[1754671460378,0.002,3967.0,3966.9,3.16408484]
[1754671461013,0.002,3967.0,3966.9,2.64726011]
[1754671462914,0.9452,3967.0,3966.9,0.1264]
[1754671463303,0.9452,3967.0,3966.7,3.0]
[1754671463502,0.002,3967.0,3966.7,2.64738441]
[1754671463711,0.002,3967.0,3966.7,3.1264]
[1754671463712,0.9432,3966.9,3966.7,3.1264]
[1754671463921,4.8452,3966.8,3965.9,0.001]
[1754671464123,0.1264,3966.7,3966.1,2.52132731]
[1754671464292,0.9486,3966.6,3966.1,0.1264]
[1754671464494,2.64739301,3966.7,3966.1,2.64776636]
[1754671464711,2.64739301,3966.7,3966.2,2.52130117]
[1754671464712,0.9486,3966.5,3966.2,2.52130117]
[1754671464944,3.902,3966.4,3966.2,2.52130117]
[1754671465320,0.9486,3966.3,3966.2,2.52130117]
[1754671466221,3.902,3966.4,3966.3,2.52124145]
[1754671466603,3.902,3966.4,3966.3,5.52124145]
[1754671469293,3.902,3966.4,3966.3,9.83124145]
[1754671473319,3.902,3966.4,3966.3,11.12631042]
[1754671474635,4.8506,3966.4,3966.3,4.31]
[1754671474819,2.52143217,3966.0,3965.9,0.001]
[1754671475132,6.42243217,3966.0,3965.9,0.001]
[1754671475434,7.49743217,3966.0,3965.9,0.001]
[1754671475640,8.49931052,3966.0,3965.9,0.001]